Workbook

Sheet Lista zaliha
C1: Lista zaliha | F1: Markirati stavke označene zastavicom za ponovno poručivanje? | H1: Da
B3: Stavke označene zastavicom za ponovno poručivanje | C3: ID zaliha | D3: Ime | E3: Opis | F3: Jedinična cena | G3: Količina na lageru | H3: Vrednost zaliha | I3: Nivo ponovnog poručivanja | J3: Vreme ponovnog poručivanja u danima | K3: Količina za ponovno poručivanje | L3: Obustaviti?
B4: =IFERROR((ListaZaliha[[#This Row],[Količina na lageru]]<=ListaZaliha[[#This Row],[Nivo ponovnog poručivanja]])*(ListaZaliha[[#This Row],[Obustaviti?]]="")*valHighlight,0) -> 1 | C4: IN0001 | D4: Stavka 1 | E4: Opis 1 | F4: 51.00 din. | G4: 25 | H4: =ListaZaliha[[#This Row],[Jedinična cena]]*ListaZaliha[[#This Row],[Količina na lageru]] -> 1,275.00 din. | I4: 29 | J4: 13 | K4: 50
B5: =IFERROR((ListaZaliha[[#This Row],[Količina na lageru]]<=ListaZaliha[[#This Row],[Nivo ponovnog poručivanja]])*(ListaZaliha[[#This Row],[Obustaviti?]]="")*valHighlight,0) -> 1 | C5: IN0002 | D5: Stavka 2 | E5: Opis 2 | F5: 93.00 din. | G5: 132 | H5: =ListaZaliha[[#This Row],[Jedinična cena]]*ListaZaliha[[#This Row],[Količina na lageru]] -> 12,276.00 din. | I5: 231 | J5: 4 | K5: 50
B6: =IFERROR((ListaZaliha[[#This Row],[Količina na lageru]]<=ListaZaliha[[#This Row],[Nivo ponovnog poručivanja]])*(ListaZaliha[[#This Row],[Obustaviti?]]="")*valHighlight,0) -> 0 | C6: IN0003 | D6: Stavka 3 | E6: Opis 3 | F6: 57.00 din. | G6: 151 | H6: =ListaZaliha[[#This Row],[Jedinična cena]]*ListaZaliha[[#This Row],[Količina na lageru]] -> 8,607.00 din. | I6: 114 | J6: 11 | K6: 150
B7: =IFERROR((ListaZaliha[[#This Row],[Količina na lageru]]<=ListaZaliha[[#This Row],[Nivo ponovnog poručivanja]])*(ListaZaliha[[#This Row],[Obustaviti?]]="")*valHighlight,0) -> 0 | C7: IN0004 | D7: Stavka 4 | E7: Opis 4 | F7: 19.00 din. | G7: 186 | H7: =ListaZaliha[[#This Row],[Jedinična cena]]*ListaZaliha[[#This Row],[Količina na lageru]] -> 3,534.00 din. | I7: 158 | J7: 6 | K7: 50
B8: =IFERROR((ListaZaliha[[#This Row],[Količina na lageru]]<=ListaZaliha[[#This Row],[Nivo ponovnog poručivanja]])*(ListaZaliha[[#This Row],[Obustaviti?]]="")*valHighlight,0) -> 0 | C8: IN0005 | D8: Stavka 5 | E8: Opis 5 | F8: 75.00 din. | G8: 62 | H8: =ListaZaliha[[#This Row],[Jedinična cena]]*ListaZaliha[[#This Row],[Količina na lageru]] -> 4,650.00 din. | I8: 39 | J8: 12 | K8: 50
B9: =IFERROR((ListaZaliha[[#This Row],[Količina na lageru]]<=ListaZaliha[[#This Row],[Nivo ponovnog poručivanja]])*(ListaZaliha[[#This Row],[Obustaviti?]]="")*valHighlight,0) -> 1 | C9: IN0006 | D9: Stavka 6 | E9: Opis 6 | F9: 11.00 din. | G9: 5 | H9: =ListaZaliha[[#This Row],[Jedinična cena]]*ListaZaliha[[#This Row],[Količina na lageru]] -> 55.00 din. | I9: 9 | J9: 13 | K9: 150
B10: =IFERROR((ListaZaliha[[#This Row],[Količina na lageru]]<=ListaZaliha[[#This Row],[Nivo ponovnog poručivanja]])*(ListaZaliha[[#This Row],[Obustaviti?]]="")*valHighlight,0) -> 0 | C10: IN0007 | D10: Stavka 7 | E10: Opis 7 | F10: 56.00 din. | G10: 58 | H10: =ListaZaliha[[#This Row],[Jedinična cena]]*ListaZaliha[[#This Row],[Količina na lageru]] -> 3,248.00 din. | I10: 109 | J10: 7 | K10: 100 | L10: da
B11: =IFERROR((ListaZaliha[[#This Row],[Količina na lageru]]<=ListaZaliha[[#This Row],[Nivo ponovnog poručivanja]])*(ListaZaliha[[#This Row],[Obustaviti?]]="")*valHighlight,0) -> 1 | C11: IN0008 | D11: Stavka 8 | E11: Opis 8 | F11: 38.00 din. | G11: 101 | H11: =ListaZaliha[[#This Row],[Jedinična cena]]*ListaZaliha[[#This Row],[Količina na lageru]] -> 3,838.00 din. | I11: 162 | J11: 3 | K11: 100
B12: =IFERROR((ListaZaliha[[#This Row],[Količina na lageru]]<=ListaZaliha[[#This Row],[Nivo ponovnog poručivanja]])*(ListaZaliha[[#This Row],[Obustaviti?]]="")*valHighlight,0) -> 0 | C12: IN0009 | D12: Stavka 9 | E12: Opis 9 | F12: 59.00 din. | G12: 122 | H12: =ListaZaliha[[#This Row],[Jedinična cena]]*ListaZaliha[[#This Row],[Količina na lageru]] -> 7,198.00 din. | I12: 82 | J12: 3 | K12: 150
B13: =IFERROR((ListaZaliha[[#This Row],[Količina na lageru]]<=ListaZaliha[[#This Row],[Nivo ponovnog poručivanja]])*(ListaZaliha[[#This Row],[Obustaviti?]]="")*valHighlight,0) -> 1 | C13: IN0010 | D13: Stavka 10 | E13: Opis 10 | F13: 50.00 din. | G13: 175 | H13: =ListaZaliha[[#This Row],[Jedinična cena]]*ListaZaliha[[#This Row],[Količina na lageru]] -> 8,750.00 din. | I13: 283 | J13: 8 | K13: 150
B14: =IFERROR((ListaZaliha[[#This Row],[Količina na lageru]]<=ListaZaliha[[#This Row],[Nivo ponovnog poručivanja]])*(ListaZaliha[[#This Row],[Obustaviti?]]="")*valHighlight,0) -> 1 | C14: IN0011 | D14: Stavka 11 | E14: Opis 11 | F14: 59.00 din. | G14: 176 | H14: =ListaZaliha[[#This Row],[Jedinična cena]]*ListaZaliha[[#This Row],[Količina na lageru]] -> 10,384.00 din. | I14: 229 | J14: 1 | K14: 100
B15: =IFERROR((ListaZaliha[[#This Row],[Količina na lageru]]<=ListaZaliha[[#This Row],[Nivo ponovnog poručivanja]])*(ListaZaliha[[#This Row],[Obustaviti?]]="")*valHighlight,0) -> 1 | C15: IN0012 | D15: Stavka 12 | E15: Opis 12 | F15: 18.00 din. | G15: 22 | H15: =ListaZaliha[[#This Row],[Jedinična cena]]*ListaZaliha[[#This Row],[Količina na lageru]] -> 396.00 din. | I15: 36 | J15: 12 | K15: 50
B16: =IFERROR((ListaZaliha[[#This Row],[Količina na lageru]]<=ListaZaliha[[#This Row],[Nivo ponovnog poručivanja]])*(ListaZaliha[[#This Row],[Obustaviti?]]="")*valHighlight,0) -> 1 | C16: IN0013 | D16: Stavka 13 | E16: Opis 13 | F16: 26.00 din. | G16: 72 | H16: =ListaZaliha[[#This Row],[Jedinična cena]]*ListaZaliha[[#This Row],[Količina na lageru]] -> 1,872.00 din. | I16: 102 | J16: 9 | K16: 100
B17: =IFERROR((ListaZaliha[[#This Row],[Količina na lageru]]<=ListaZaliha[[#This Row],[Nivo ponovnog poručivanja]])*(ListaZaliha[[#This Row],[Obustaviti?]]="")*valHighlight,0) -> 1 | C17: IN0014 | D17: Stavka 14 | E17: Opis 14 | F17: 42.00 din. | G17: 62 | H17: =ListaZaliha[[#This Row],[Jedinična cena]]*ListaZaliha[[#This Row],[Količina na lageru]] -> 2,604.00 din. | I17: 83 | J17: 2 | K17: 100
B18: =IFERROR((ListaZaliha[[#This Row],[Količina na lageru]]<=ListaZaliha[[#This Row],[Nivo ponovnog poručivanja]])*(ListaZaliha[[#This Row],[Obustaviti?]]="")*valHighlight,0) -> 0 | C18: IN0015 | D18: Stavka 15 | E18: Opis 15 | F18: 32.00 din. | G18: 46 | H18: =ListaZaliha[[#This Row],[Jedinična cena]]*ListaZaliha[[#This Row],[Količina na lageru]] -> 1,472.00 din. | I18: 23 | J18: 15 | K18: 50
B19: =IFERROR((ListaZaliha[[#This Row],[Količina na lageru]]<=ListaZaliha[[#This Row],[Nivo ponovnog poručivanja]])*(ListaZaliha[[#This Row],[Obustaviti?]]="")*valHighlight,0) -> 1 | C19: IN0016 | D19: Stavka 16 | E19: Opis 16 | F19: 90.00 din. | G19: 96 | H19: =ListaZaliha[[#This Row],[Jedinična cena]]*ListaZaliha[[#This Row],[Količina na lageru]] -> 8,640.00 din. | I19: 180 | J19: 3 | K19: 50
B20: =IFERROR((ListaZaliha[[#This Row],[Količina na lageru]]<=ListaZaliha[[#This Row],[Nivo ponovnog poručivanja]])*(ListaZaliha[[#This Row],[Obustaviti?]]="")*valHighlight,0) -> 0 | C20: IN0017 | D20: Stavka 17 | E20: Opis 17 | F20: 97.00 din. | G20: 57 | H20: =ListaZaliha[[#This Row],[Jedinična cena]]*ListaZaliha[[#This Row],[Količina na lageru]] -> 5,529.00 din. | I20: 98 | J20: 12 | K20: 50 | L20: Da
B21: =IFERROR((ListaZaliha[[#This Row],[Količina na lageru]]<=ListaZaliha[[#This Row],[Nivo ponovnog poručivanja]])*(ListaZaliha[[#This Row],[Obustaviti?]]="")*valHighlight,0) -> 1 | C21: IN0018 | D21: Stavka 18 | E21: Opis 18 | F21: 12.00 din. | G21: 6 | H21: =ListaZaliha[[#This Row],[Jedinična cena]]*ListaZaliha[[#This Row],[Količina na lageru]] -> 72.00 din. | I21: 7 | J21: 13 | K21: 50
B22: =IFERROR((ListaZaliha[[#This Row],[Količina na lageru]]<=ListaZaliha[[#This Row],[Nivo ponovnog poručivanja]])*(ListaZaliha[[#This Row],[Obustaviti?]]="")*valHighlight,0) -> 1 | C22: IN0019 | D22: Stavka 19 | E22: Opis 19 | F22: 82.00 din. | G22: 143 | H22: =ListaZaliha[[#This Row],[Jedinična cena]]*ListaZaliha[[#This Row],[Količina na lageru]] -> 11,726.00 din. | I22: 164 | J22: 12 | K22: 150
B23: =IFERROR((ListaZaliha[[#This Row],[Količina na lageru]]<=ListaZaliha[[#This Row],[Nivo ponovnog poručivanja]])*(ListaZaliha[[#This Row],[Obustaviti?]]="")*valHighlight,0) -> 0 | C23: IN0020 | D23: Stavka 20 | E23: Opis 20 | F23: 16.00 din. | G23: 124 | H23: =ListaZaliha[[#This Row],[Jedinična cena]]*ListaZaliha[[#This Row],[Količina na lageru]] -> 1,984.00 din. | I23: 113 | J23: 14 | K23: 50
B24: =IFERROR((ListaZaliha[[#This Row],[Količina na lageru]]<=ListaZaliha[[#This Row],[Nivo ponovnog poručivanja]])*(ListaZaliha[[#This Row],[Obustaviti?]]="")*valHighlight,0) -> 0 | C24: IN0021 | D24: Stavka 21 | E24: Opis 21 | F24: 19.00 din. | G24: 112 | H24: =ListaZaliha[[#This Row],[Jedinična cena]]*ListaZaliha[[#This Row],[Količina na lageru]] -> 2,128.00 din. | I24: 75 | J24: 11 | K24: 50
B25: =IFERROR((ListaZaliha[[#This Row],[Količina na lageru]]<=ListaZaliha[[#This Row],[Nivo ponovnog poručivanja]])*(ListaZaliha[[#This Row],[Obustaviti?]]="")*valHighlight,0) -> 0 | C25: IN0022 | D25: Stavka 22 | E25: Opis 22 | F25: 24.00 din. | G25: 182 | H25: =ListaZaliha[[#This Row],[Jedinična cena]]*ListaZaliha[[#This Row],[Količina na lageru]] -> 4,368.00 din. | I25: 132 | J25: 15 | K25: 150
B26: =IFERROR((ListaZaliha[[#This Row],[Količina na lageru]]<=ListaZaliha[[#This Row],[Nivo ponovnog poručivanja]])*(ListaZaliha[[#This Row],[Obustaviti?]]="")*valHighlight,0) -> 0 | C26: IN0023 | D26: Stavka 23 | E26: Opis 23 | F26: 29.00 din. | G26: 106 | H26: =ListaZaliha[[#This Row],[Jedinična cena]]*ListaZaliha[[#This Row],[Količina na lageru]] -> 3,074.00 din. | I26: 142 | J26: 1 | K26: 150 | L26: Da
B27: =IFERROR((ListaZaliha[[#This Row],[Količina na lageru]]<=ListaZaliha[[#This Row],[Nivo ponovnog poručivanja]])*(ListaZaliha[[#This Row],[Obustaviti?]]="")*valHighlight,0) -> 0 | C27: IN0024 | D27: Stavka 24 | E27: Opis 24 | F27: 75.00 din. | G27: 173 | H27: =ListaZaliha[[#This Row],[Jedinična cena]]*ListaZaliha[[#This Row],[Količina na lageru]] -> 12,975.00 din. | I27: 127 | J27: 9 | K27: 100
B28: =IFERROR((ListaZaliha[[#This Row],[Količina na lageru]]<=ListaZaliha[[#This Row],[Nivo ponovnog poručivanja]])*(ListaZaliha[[#This Row],[Obustaviti?]]="")*valHighlight,0) -> 0 | C28: IN0025 | D28: Stavka 25 | E28: Opis 25 | F28: 14.00 din. | G28: 28 | H28: =ListaZaliha[[#This Row],[Jedinična cena]]*ListaZaliha[[#This Row],[Količina na lageru]] -> 392.00 din. | I28: 21 | J28: 8 | K28: 50
